bitfinex/quotes_ETHUSD_20251122
["timestamp","ask_amount","ask_price","bid_price","bid_amount"]
[1763797046221,0.3380629,2760.1,2760.0,0.9554]
[1763797049487,1.50985479,2760.7,2760.0,0.9554]
[1763797049488,1.87928761,2760.6,2760.0,0.9554]
[1763797049784,1.1167797,2760.5,2760.1,1.1362]
[1763797050015,1.31120921,2760.6,2760.1,1.1362]
[1763797050016,1.1167797,2760.4,2760.1,1.1362]
[1763797050169,1.1167797,2760.3,2760.2,0.4608]
[1763797050493,0.3380418,2760.3,2760.2,0.4608]
[1763797050708,0.3380418,2760.5,2760.2,0.9544]
[1763797050850,1.1167797,2760.5,2760.2,0.4608]
[1763797051048,1.1167797,2760.4,2760.3,0.4608]
[1763797051495,0.3380418,2760.4,2760.3,0.9544]
[1763797051655,0.3380418,2760.6,2760.3,0.9544]
[1763797051974,0.4628,2760.4,2760.0,0.001]
[1763797052175,0.247,2760.1,2760.0,0.001]
[1763797052863,0.3380418,2760.2,2760.0,0.001]
[1763797053764,0.3380418,2760.2,2760.1,0.6754]
[1763797053965,1.1167797,2760.2,2760.1,1.1362]
[1763797054292,0.3380418,2760.2,2760.1,1.1362]
[1763797054787,0.3380418,2760.5,2760.1,1.1362]
[1763797054997,0.3380418,2760.5,2760.2,0.4608]
[1763797055198,1.11674232,2760.5,2760.4,0.4936]
[1763797055386,0.3380418,2760.5,2760.4,0.4936]
[1763797055561,0.3380418,2760.5,2760.4,0.9535]
[1763797055768,1.1167858,2760.8,2760.4,0.9535]
[1763797055967,1.1167858,2760.7,2760.5,0.4599]
[1763797056168,0.3380418,2760.6,2760.5,0.4599]
[1763797056364,1.11678661,2760.9,2760.5,0.4599]
[1763797056561,1.11678661,2760.8,2760.5,0.4599]
[1763797056764,0.3380418,2760.7,2760.5,0.4599]
[1763797057006,0.97229497,2761.1,2760.5,0.4599]
[1763797057007,0.3380418,2761.0,2760.5,0.4599]
[1763797057296,0.68502135,2761.0,2760.6,0.4876]
[1763797057500,1.46368739,2761.0,2760.6,0.4876]
[1763797057800,1.11670784,2760.9,2760.6,0.9691]
[1763797058000,1.11670784,2760.8,2760.6,0.9691]
[1763797058170,0.3380418,2760.7,2760.6,0.4815]
[1763797058374,0.3380418,2760.9,2760.6,0.9611]
[1763797058565,1.11634011,2761.0,2760.6,0.4815]
[1763797058808,1.11634011,2760.9,2760.7,0.4815]
[1763797059108,1.33892306,2761.2,2760.7,0.4815]
[1763797059268,0.36662809,2761.2,2761.1,0.4796]
[1763797059603,1.48223781,2761.2,2761.1,0.4796]
[1763797059803,0.33768048,2761.2,2761.1,0.4796]
[1763797060303,1.11560972,2761.2,2761.1,0.4796]
[1763797060505,0.81108048,2761.2,2760.9,0.4815]
[1763797060672,0.33768048,2761.1,2760.9,0.4815]
[1763797061018,0.33768048,2761.1,2760.1,0.1818]
[1763797061168,0.04527345,2761.0,2760.9,0.4815]
[1763797061502,0.33768048,2761.1,2760.9,0.4815]
[1763797061688,1.11560972,2761.2,2761.0,0.4796]
[1763797061895,1.11560972,2761.1,2761.0,0.4796]
[1763797062201,0.33768048,2761.1,2761.0,0.4796]
[1763797062412,1.11560972,2761.3,2761.0,0.4796]
[1763797062579,0.58900072,2761.2,2761.0,0.4796]
[1763797062784,1.36692996,2761.2,2761.0,0.4796]
[1763797062979,0.57028048,2761.1,2760.7,0.4815]
[1763797063284,0.33768048,2761.1,2760.7,0.4815]
[1763797063482,1.11472289,2761.4,2761.0,0.4796]
[1763797063681,1.15999142,2761.3,2760.7,0.4815]
[1763797063990,0.33768048,2761.2,2760.7,0.4815]
[1763797064189,0.82828048,2761.2,2760.3,0.4815]
[1763797064400,0.82828048,2761.2,2760.1,0.1818]
[1763797064401,0.33768048,2761.1,2760.2,0.4815]
[1763797065692,0.38295229,2761.1,2760.2,0.4815]
[1763797065893,1.60532289,2761.1,2760.2,0.4815]
[1763797066110,1.11472289,2761.0,2760.2,0.4815]
[1763797066404,0.33768048,2760.9,2760.2,0.4815]
[1763797066603,0.33768048,2761.0,2760.2,0.4815]
[1763797066809,0.04527509,2760.9,2760.2,0.4815]
[1763797067109,0.1756,2760.9,2760.2,0.4815]
[1763797067411,0.51328048,2760.9,2760.2,0.4815]
[1763797067578,1.29010669,2760.9,2760.2,0.4815]
[1763797067774,0.77682621,2760.9,2760.2,0.4815]
[1763797068107,0.38243954,2760.8,2760.2,0.4815]
[1763797068470,1.4415535,2760.8,2760.1,0.001]
[1763797068675,1.11395148,2760.7,2760.1,0.001]
[1763797068870,0.33714725,2760.6,2760.1,0.001]
[1763797069203,0.33714725,2760.6,2760.1,0.1822]
[1763797069405,1.04505379,2760.6,2760.1,0.6637]
[1763797069707,0.2178,2760.2,2760.1,0.001]
[1763797071005,0.7057,2760.2,2760.1,0.001]
[1763797071313,0.2178,2760.2,2760.1,0.001]
[1763797071514,0.33719321,2760.3,2760.1,0.4806]
[1763797071686,0.77692014,2760.5,2760.3,0.4796]
[1763797071895,0.99422668,2760.6,2760.4,0.4796]
[1763797072200,0.56851396,2760.8,2760.5,0.4796]
[1763797072379,0.33726292,2760.7,2760.5,0.4796]
[1763797072774,0.33726292,2760.7,2760.6,0.4796]
[1763797073680,0.56851396,2760.8,2760.6,0.9611]
[1763797073883,0.56851396,2760.8,2760.7,0.4796]
[1763797074117,0.56851396,2760.8,2760.7,0.9611]
[1763797075682,0.56851396,2760.8,2760.7,0.4796]
[1763797076282,0.56851396,2760.8,2760.7,0.9611]
[1763797079644,0.97429497,2761.5,2760.7,0.9611]
[1763797079942,0.33756001,2761.4,2761.1,0.4796]
[1763797080843,2.02230049,2761.4,2761.3,0.4796]
[1763797081154,1.11530785,2761.4,2761.3,0.4796]
[1763797081312,0.33756001,2761.4,2761.3,0.4796]
[1763797081510,0.002,2761.5,2761.3,0.4796]
[1763797081837,0.002,2761.5,2761.4,0.4796]
[1763797082620,0.002,2761.5,2761.4,0.9611]
[1763797082821,0.002,2761.5,2761.4,0.4796]
[1763797083044,1.11742822,2761.5,2761.4,0.4796]
[1763797083244,0.33956419,2761.5,2761.4,0.4796]
[1763797083450,0.002,2761.5,2761.4,0.4796]
[1763797083813,0.002,2761.5,2761.4,0.9611]
[1763797084229,0.33956419,2761.5,2761.4,0.9611]
[1763797084518,0.002,2761.5,2761.4,0.9611]
[1763797085253,0.2198,2761.5,2761.1,0.1812]
[1763797085962,0.2198,2761.5,2761.1,0.6382]
[1763797087366,0.002,2761.5,2761.4,0.4563]
[1763797087767,0.002,2761.5,2761.4,0.9133]
[1763797089970,0.002,2761.5,2761.4,0.4563]
[1763797091039,0.2112,2761.5,2761.4,0.4563]
[1763797091270,0.002,2761.5,2761.4,0.4563]
[1763797093263,0.57038149,2761.5,2761.4,0.4563]
[1763797097268,0.77958149,2761.5,2761.1,0.1812]
[1763797097455,0.4758,2761.2,2760.5,3.804]
[1763797097659,0.4758,2761.2,2760.8,0.457]
[1763797099290,1.47737413,2761.5,2761.1,0.6526]
[1763797099498,0.57038149,2761.5,2761.4,0.4563]
[1763797100334,0.57038149,2761.5,2761.4,0.9133]
[1763797101283,0.002,2761.5,2761.4,0.9133]
[1763797102719,0.002,2761.5,2761.4,0.4563]
[1763797102889,0.2423,2761.5,2761.2,0.457]
[1763797103596,0.002,2761.5,2761.4,0.4563]
[1763797104624,0.002,2761.5,2761.4,0.4573]
[1763797104918,0.002,2761.5,2761.4,0.9143]
[1763797108886,0.002,2761.5,2761.4,0.4573]
[1763797109120,0.002,2761.5,2761.4,0.001]
[1763797109347,0.002,2761.5,2761.4,0.9143]
[1763797111807,0.002,2761.5,2761.4,0.4573]
[1763797112017,0.2423,2761.5,2761.4,0.001]
[1763797112533,5.99522865,2761.5,2761.4,0.001]
[1763797112706,6.20043477,2761.5,2761.4,0.001]
[1763797113499,10.60848129,2761.5,2761.4,0.001]
[1763797113694,9.63618632,2761.5,2761.4,0.001]
[1763797113921,27.7761802,2761.5,2761.4,0.001]
[1763797114228,0.405504,2761.3,2761.1,0.001]
[1763797114431,7.49959001,2761.2,2761.1,0.001]
[1763797114732,7.49916489,2761.2,2761.1,0.001]
[1763797114892,8.66074744,2761.2,2761.1,0.001]
[1763797115324,7.3621922,2761.2,2761.1,0.001]
[1763797115526,14.74068144,2761.2,2761.1,0.001]
[1763797115949,16.40953287,2761.2,2761.1,0.001]
[1763797116134,10.64355573,2761.2,2761.1,0.001]
[1763797116356,12.25346963,2761.2,2761.1,0.001]
[1763797117060,5.5467982,2761.2,2761.1,0.001]
[1763797117225,3.3699581,2761.2,2761.1,0.001]
[1763797120463,2.9047581,2761.2,2761.1,0.001]
[1763797120839,3.3699581,2761.2,2761.1,0.001]
[1763797124251,2.9047581,2761.2,2761.1,0.001]
[1763797124563,2.6644581,2761.2,2761.1,0.4937]
[1763797124860,1.88435214,2761.2,2761.1,0.4937]
[1763797125163,2.15835214,2761.2,2761.1,0.001]
[1763797125970,1.24515214,2761.2,2761.1,0.4937]
[1763797126392,1.24515214,2761.2,2761.1,0.9728]
[1763797126530,1.24515214,2761.2,2761.1,0.4937]
[1763797126731,1.51915214,2761.2,2761.1,0.001]
[1763797126970,2.02772231,2761.2,2761.1,0.001]
[1763797127459,1.56442231,2761.2,2761.1,0.001]
[1763797128874,1.24515214,2761.2,2761.1,0.4937]
[1763797129081,1.24515214,2761.2,2761.1,1.1681]
[1763797129641,1.24515214,2761.2,2761.1,0.689]
[1763797130655,1.24515214,2761.2,2761.1,1.1681]
[1763797132995,1.24515214,2761.2,2761.1,0.4937]
[1763797133698,1.51915214,2761.2,2761.1,0.001]
[1763797133994,1.24515214,2761.2,2761.1,0.4937]
[1763797134884,1.24515214,2761.2,2761.1,0.9728]
[1763797136283,1.24515214,2761.2,2761.1,0.4937]
[1763797136889,1.51915214,2761.2,2761.1,0.001]
[1763797137396,1.98245214,2761.2,2761.1,0.001]
[1763797139697,1.51915214,2761.2,2761.1,0.001]
[1763797140702,1.81359885,2761.2,2761.1,1.1681]
[1763797140868,0.56844671,2761.2,2761.1,1.1681]
[1763797141067,0.002,2761.4,2761.1,1.1681]
[1763797141309,0.002,2761.4,2761.3,0.4927]
[1763797141679,0.002,2761.4,2761.3,0.9718]
[1763797142095,0.002,2761.4,2761.1,0.1963]
[1763797142302,0.6138959,2761.4,2761.1,0.001]
[1763797142497,1.39304665,2761.4,2761.1,0.001]
[1763797142679,0.3378959,2761.3,2761.1,0.001]
[1763797143671,0.3378959,2761.3,2761.2,0.4927]
[1763797145082,0.65716443,2761.3,2761.1,0.001]
[1763797145284,1.82326151,2761.3,2761.2,0.4927]
[1763797145603,0.3378959,2761.3,2761.2,0.9545]
[1763797145899,0.3398959,2761.4,2761.2,0.9545]
[1763797146209,0.002,2761.4,2761.3,0.9491]
[1763797154480,0.002,2761.4,2761.3,1.354604]
[1763797156279,0.002,2761.5,2761.3,5.168604]
[1763797156485,0.002,2761.5,2761.4,6.3866896]
[1763797156993,0.97409546,2761.7,2761.4,3.92436323]
[1763797157188,0.97409546,2761.7,2761.6,4.32082583]
[1763797157607,0.97409546,2761.7,2761.6,4.78362583]
[1763797157796,0.002,2761.8,2761.6,4.78362583]
[1763797157992,0.002,2761.8,2761.7,2.6342244]
[1763797158199,0.002,2762.8,2762.2,0.6687]
[1763797158379,0.002,2762.8,2762.5,5.22781847]
[1763797158801,0.002,2762.8,2762.6,0.405504]
[1763797159081,0.002,2762.8,2762.7,3.91532183]
[1763797159292,0.002,2762.8,2762.7,4.96168697]
[1763797160099,0.002,2762.8,2762.7,5.36719097]
[1763797160327,0.002,2762.8,2762.7,5.48919097]
[1763797161341,0.002,2762.8,2762.7,9.10883841]
[1763797161543,0.002,2763.1,2762.8,1.31249664]
[1763797161748,0.002,2763.1,2762.8,3.96139975]
[1763797162314,0.002,2763.1,2762.8,7.39782158]
[1763797162808,0.002,2763.1,2762.8,3.96139975]
[1763797163013,0.002,2763.4,2763.1,0.405504]
[1763797163268,0.002,2763.4,2763.3,4.51062583]
[1763797163415,0.002,2763.4,2763.3,5.88041847]
[1763797163622,0.002,2763.8,2763.4,0.884404]
[1763797163811,0.002,2763.8,2763.7,4.32082583]
[1763797164127,0.002,2763.8,2763.7,5.1550306]
[1763797164333,0.002,2763.8,2763.7,5.6092606]
[1763797164534,0.002,2763.8,2763.7,5.75423462]
[1763797164952,0.002,2763.8,2763.7,5.99821958]
[1763797165316,0.002,2763.8,2763.7,6.90521222]
[1763797165515,0.002,2763.8,2763.7,10.52354995]
[1763797166217,0.002,2763.8,2763.7,3.23337543]
[1763797166452,0.002,2763.8,2763.7,6.19300745]
[1763797167050,0.002,2763.8,2763.7,2.52117066]
[1763797167252,0.002,2764.4,2763.7,6.13950839]
[1763797167431,0.002,2764.4,2764.0,1.79139664]
[1763797167842,0.002,2764.4,2764.0,2.25419664]
[1763797168054,0.002,2764.4,2764.0,2.9646726]
[1763797170779,0.002,2764.4,2764.0,1.65217596]
[1763797170998,0.002,2764.4,2764.0,0.9417]
[1763797171271,0.2463,2764.1,2763.5,0.5848]
[1763797171438,0.2463,2764.1,2763.5,0.122]
[1763797171638,0.2463,2764.1,2763.6,0.405504]
[1763797171837,0.2463,2764.1,2763.5,0.4628]
[1763797172069,0.7395,2764.1,2763.5,0.4628]
[1763797172651,0.4643,2763.6,2763.3,0.8075]
[1763797172847,0.4643,2763.6,2763.1,0.7746]
[1763797173252,0.002,2764.1,2763.5,0.4789]
[1763797173454,0.002,2764.1,2763.7,0.4789]
[1763797173657,0.002,2764.1,2763.7,0.9417]
[1763797174077,0.002,2764.1,2763.7,0.4789]
[1763797174265,0.002,2764.1,2763.8,0.4628]
[1763797174848,0.002,2764.1,2763.2,0.405504]
[1763797175166,0.002,2764.1,2763.6,0.4628]
[1763797175371,0.002,2764.1,2763.4,0.405504]
[1763797175569,0.4978,2764.1,2763.4,0.405504]
[1763797175954,0.4978,2764.1,2763.2,0.122]
[1763797176186,0.4978,2764.1,2763.1,0.6415]
[1763797176373,0.4978,2764.1,2763.2,0.405504]
[1763797177077,0.002,2764.1,2763.2,0.405504]
[1763797177278,0.002,2764.1,2763.3,0.4743]
[1763797177479,0.002,2764.1,2763.4,0.405504]
[1763797177686,0.4944,2764.0,2763.4,0.405504]
[1763797178384,0.184,2763.9,2763.2,0.405504]
[1763797178683,0.6784,2763.9,2763.2,0.879804]
[1763797179489,0.4944,2763.8,2763.1,0.1898]
[1763797179851,0.4944,2763.8,2763.1,0.4743]
[1763797180668,0.4964,2764.1,2763.7,0.4712]
[1763797180864,0.4964,2764.1,2763.2,0.405504]
[1763797181287,0.4964,2764.1,2763.2,0.879804]
[1763797181794,0.2541,2763.3,2763.0,0.405504]
[1763797182158,0.2541,2763.3,2762.9,0.405504]
[1763797182358,0.2541,2763.3,2762.9,0.879804]
[1763797182899,0.184,2763.5,2763.2,0.4712]
[1763797183098,0.4944,2763.7,2763.0,0.4743]
[1763797183703,0.4944,2763.7,2763.1,0.42783]
[1763797184609,0.2541,2763.2,2762.9,3.804]
[1763797184905,0.4944,2763.7,2762.9,3.804]
[1763797185106,0.4944,2763.6,2762.9,3.804]
[1763797185608,1.1728,2763.9,2763.0,0.4743]
[1763797185806,0.4944,2763.8,2763.0,0.4743]
[1763797186005,0.4944,2763.8,2763.1,0.42783]
[1763797186709,0.184,2763.9,2763.2,0.4743]
[1763797187096,1.01517744,2763.9,2763.2,0.4743]
[1763797187297,0.6784,2763.9,2763.2,0.4743]
[1763797187684,0.184,2763.9,2763.2,0.4743]
[1763797189190,0.6784,2763.9,2763.2,0.4743]
[1763797189591,0.4944,2763.8,2763.3,0.470613]
[1763797189788,0.4944,2763.8,2763.1,4.23183]
[1763797190533,0.184,2763.9,2763.1,4.23183]
[1763797190702,0.4944,2763.8,2763.1,4.23183]
[1763797191030,0.2541,2763.2,2763.1,4.23183]
[1763797191202,0.4944,2763.8,2763.1,4.23183]
[1763797192209,0.4944,2763.8,2763.2,0.423183]
[1763797194343,0.184,2763.9,2763.2,0.897483]
[1763797195131,0.6784,2763.9,2763.2,0.897483]
[1763797195325,0.6784,2763.9,2763.3,0.4743]
[1763797195720,0.184,2763.9,2763.2,0.423183]
[1763797195932,0.4944,2763.8,2763.3,0.4227183]
[1763797197749,0.4944,2763.8,2763.3,0.8970183]
[1763797198555,0.002,2764.1,2763.3,0.8970183]
[1763797198556,0.002,2764.1,2763.7,0.4712]
[1763797199052,0.83383873,2764.1,2763.7,0.4712]
[1763797199213,0.2541,2763.8,2763.4,0.4743]
[1763797199842,0.7461,2763.8,2763.3,0.4227183]
[1763797200041,0.7461,2763.8,2763.3,0.8970183]
[1763797200238,0.2541,2763.8,2763.3,0.8970183]
[1763797200420,0.2541,2763.8,2763.4,0.4743]
[1763797200616,0.7461,2763.8,2763.3,0.4227183]
[1763797201138,0.492,2763.7,2763.3,0.4227183]
[1763797201516,0.2564,2763.4,2763.3,0.4227183]
[1763797202317,0.492,2763.7,2763.3,0.8939183]
[1763797202612,0.2564,2763.4,2763.3,0.4227183]
[1763797203146,0.2564,2763.4,2763.1,3.804]
[1763797203147,0.746,2763.4,2763.1,3.804]
[1763797203322,0.184,2763.9,2763.0,0.001]
[1763797203323,0.0049,2763.2,2763.0,0.001]
[1763797203522,0.7436,2763.1,2763.0,0.001]
[1763797205828,1.08147923,2763.1,2763.0,0.001]
[1763797206029,1.26751117,2763.1,2763.0,0.001]
[1763797206234,0.7436,2763.1,2763.0,0.001]
[1763797206752,0.2492,2763.1,2763.0,0.001]
[1763797206953,1.27440806,2763.6,2763.0,0.4856]
[1763797207152,0.4962,2763.6,2763.0,0.9838]
[1763797207853,0.4962,2763.6,2763.0,0.4856]
[1763797210548,0.2523,2763.1,2763.0,0.001]
[1763797210958,0.746,2763.1,2763.0,0.001]
[1763797211160,1.08392861,2763.1,2763.0,0.001]
[1763797211470,2.04861733,2763.1,2762.8,0.001]
[1763797211669,0.2029,2762.9,2762.5,0.001]
[1763797211868,0.2409,2762.7,2762.5,0.001]
[1763797212372,1.85291531,2762.7,2762.5,0.001]
[1763797213239,0.2409,2762.7,2762.5,0.001]
[1763797213986,0.7371,2762.7,2762.5,0.001]
[1763797214643,0.2409,2762.7,2762.5,0.001]
[1763797217396,0.199,2762.9,2762.5,0.001]
[1763797217591,0.199,2763.1,2762.6,0.4856]
[1763797217879,0.6952,2763.1,2762.6,0.4856]
[1763797218240,0.4962,2763.0,2762.6,0.4856]
[1763797219595,0.4962,2763.0,2762.6,0.001]
[1763797219883,0.2449,2762.7,2762.6,0.001]
[1763797220882,0.199,2763.1,2762.6,0.4856]
[1763797221153,0.6952,2763.1,2762.6,0.4856]
[1763797221379,0.6952,2763.1,2762.6,0.001]
[1763797221554,0.2449,2762.7,2762.6,0.001]
[1763797224793,0.6952,2763.1,2762.6,0.4856]
[1763797225090,0.4962,2763.0,2762.6,0.4856]
[1763797225297,0.2449,2762.7,2762.6,0.001]
[1763797225778,0.7386,2762.7,2762.6,0.001]
[1763797227366,0.6927,2763.1,2762.6,0.4856]
[1763797227796,0.199,2763.1,2762.6,0.4856]
[1763797228017,0.4962,2763.0,2762.6,0.4856]
[1763797228616,0.199,2763.1,2762.6,0.9838]
[1763797229115,0.002,2762.8,2762.6,0.9838]
[1763797229319,0.002,2762.8,2762.7,0.4846]
[1763797230879,0.002,2762.8,2762.7,0.9828]
[1763797234605,0.002,2762.8,2762.7,0.4846]
[1763797235320,0.002,2762.8,2762.7,0.9828]
[1763797239570,0.002,2762.8,2762.7,1.388304]
[1763797240112,0.002,2762.8,2762.7,2.6470263]
[1763797241049,0.002,2762.8,2762.7,10.07067374]
[1763797241249,0.002,2763.1,2762.8,5.22949064]
[1763797241554,0.002,2763.1,2763.0,5.46881995]
[1763797241932,0.002,2763.1,2763.0,5.95941995]
[1763797242128,0.002,2763.1,2763.0,7.40826121]
[1763797243082,0.002,2763.1,2763.0,11.02751564]
[1763797243450,0.002,2763.4,2763.1,1.41149064]
[1763797243650,0.002,2763.4,2763.3,0.878204]
[1763797243851,0.002,2763.4,2763.3,5.68819064]
[1763797244166,0.002,2764.4,2763.4,1.31249664]
[1763797244370,0.002,2764.4,2763.7,0.878204]
[1763797244575,0.002,2764.4,2763.7,1.490804]
[1763797247789,0.002,2764.4,2763.7,2.39779664]
[1763797247989,0.002,2764.4,2763.7,6.01613437]
[1763797248194,0.002,2764.4,2763.7,6.97960403]
[1763797248404,0.002,2764.4,2763.7,7.07859803]
[1763797248681,0.002,2764.4,2764.0,5.90311259]
[1763797248859,0.002,2764.4,2764.0,6.37581259]
[1763797249052,0.002,2764.4,2764.0,6.86641259]
[1763797249257,0.002,2764.4,2764.0,7.55305385]
[1763797249677,0.002,2764.4,2764.0,11.17099885]
[1763797250348,0.002,2764.4,2764.0,7.55305385]
[1763797250876,0.002,2764.4,2764.0,11.17099885]
[1763797252380,0.002,2764.4,2764.0,15.08799285]
[1763797253163,0.002,2764.4,2764.0,18.89199285]
[1763797253589,0.002,2764.4,2764.2,0.098994]
[1763797253757,0.002,2764.4,2764.3,1.64290266]
[1763797254087,0.002,2764.4,2764.3,2.13350266]
[1763797254298,0.002,2764.4,2764.3,3.0404953]
[1763797255679,0.002,2764.4,2764.3,6.65804766]
[1763797256273,0.002,2764.4,2764.3,10.57504166]
[1763797258076,0.002,2764.4,2764.3,10.47604766]
[1763797258277,0.002,2764.4,2764.3,10.35404766]
[1763797258483,0.002,2764.4,2764.3,6.8584953]
[1763797258704,0.002,2764.4,2764.3,10.57504166]
[1763797259020,0.002,2764.4,2764.3,20.75004766]
[1763797259323,0.002,2764.7,2764.5,5.22949064]
[1763797259488,0.002,2764.7,2764.6,11.19595565]
[1763797260022,0.002,2764.7,2764.6,19.10571545]
[1763797260198,0.1831,2767.0,2764.6,19.10571545]
[1763797260199,0.1825,2766.1,2764.8,3.818]
[1763797260396,0.1825,2766.1,2764.9,0.527504]
[1763797260397,0.476,2765.9,2764.9,0.527504]
[1763797260597,0.476,2765.9,2765.1,0.405504]
[1763797260786,0.1825,2766.1,2765.1,0.405504]
[1763797260787,0.1825,2766.1,2765.8,0.4727]
[1763797261329,0.476,2766.2,2765.8,0.4727]
[1763797261493,0.1831,2766.3,2765.9,0.405504]
[1763797261686,0.6591,2766.3,2765.9,0.405504]
[1763797262115,0.6591,2766.3,2765.6,0.405504]
[1763797262116,0.2696,2766.0,2765.6,0.405504]
[1763797262326,0.45,2765.7,2765.1,0.598604]
[1763797262624,0.2696,2765.1,2764.7,0.122]
[1763797262810,0.2696,2764.8,2764.3,0.64269866]
[1763797263022,0.0047,2764.4,2763.9,0.1931]
[1763797263200,0.0047,2764.4,2764.0,0.122]
[1763797263519,0.4807,2764.4,2764.0,0.122]
[1763797263819,0.4807,2764.4,2763.9,0.3151]
[1763797264019,0.0073,2764.0,2763.6,0.1931]
[1763797264228,0.0073,2764.0,2763.7,0.122]
[1763797264586,0.0073,2764.0,2763.8,0.001]
[1763797264998,0.4454,2763.9,2763.8,0.001]
[1763797265184,0.9214,2763.9,2763.8,0.001]
[1763797266221,0.9214,2763.9,2763.5,0.001]
[1763797266565,0.0099,2763.6,2763.2,0.001]
[1763797266730,0.2847,2763.3,2763.2,0.001]
[1763797266938,0.2847,2763.3,2762.6,0.001]
[1763797267138,0.4509,2763.5,2762.6,0.001]
[1763797267139,0.1949,2762.7,2762.6,0.001]
[1763797267338,0.4509,2763.2,2762.6,0.001]
[1763797267727,0.2953,2762.7,2762.6,0.001]
[1763797268828,0.7446,2762.7,2762.6,0.001]
[1763797269456,0.2968,2762.7,2762.6,0.001]
[1763797269865,0.7446,2762.7,2762.6,0.001]
[1763797271349,0.4509,2763.2,2762.6,0.001]
[1763797271549,0.2953,2762.7,2762.6,0.001]
[1763797271955,0.7446,2762.7,2762.6,0.001]
[1763797272648,0.2953,2762.7,2762.6,0.001]
[1763797272859,0.7446,2762.7,2762.6,0.001]
[1763797278195,0.7446,2762.7,2762.5,0.001]
[1763797278398,0.0074,2762.4,2762.1,0.001]
[1763797278684,0.4509,2762.6,2761.1,0.001]
[1763797278685,0.0102,2762.1,2761.1,0.001]
[1763797279083,0.4509,2762.0,2761.1,0.001]
[1763797279598,0.2961,2761.2,2761.1,0.001]
[1763797280008,0.7454,2761.2,2761.1,0.001]
[1763797282302,0.2961,2761.2,2761.1,0.001]
[1763797282691,0.6332,2761.9,2761.1,1.1105]
[1763797283104,0.4509,2761.8,2761.1,0.456]
[1763797283322,0.2961,2761.2,2761.1,0.001]
[1763797283731,0.7454,2761.2,2761.1,0.001]
[1763797284093,0.7454,2761.2,2761.0,0.001]
[1763797284317,0.7454,2761.2,2760.5,0.001]
[1763797284318,0.2917,2760.9,2760.5,0.001]
[1763797284517,0.0082,2760.6,2760.5,0.001]
[1763797284924,0.4591,2760.6,2760.5,0.001]
[1763797286042,0.0082,2760.6,2760.5,0.001]
[1763797286194,0.1823,2760.9,2760.5,0.001]
[1763797286396,0.6332,2760.9,2760.5,0.001]
[1763797287059,0.1823,2761.2,2760.5,0.4745]
[1763797287546,0.489,2760.6,2760.5,0.001]
[1763797287741,0.2592,2761.1,2760.5,0.001]
[1763797289737,0.1823,2761.2,2760.5,0.4745]
[1763797290435,0.6332,2761.2,2760.5,0.4745]
[1763797292306,0.1823,2761.2,2760.5,0.4745]
[1763797292447,0.4509,2761.8,2761.1,0.636]
[1763797292651,0.4509,2761.8,2761.1,1.1095]
[1763797293654,0.1823,2761.9,2761.2,0.4735]
[1763797294288,0.4509,2761.8,2761.1,0.181]
[1763797295954,0.4509,2761.8,2760.5,0.4828]
[1763797296296,0.4509,2761.8,2760.6,1.009304]
[1763797296496,0.4509,2761.8,2760.7,0.4818]
[1763797297395,0.4509,2761.8,2760.5,0.001]
[1763797298892,0.4509,2761.8,2760.5,0.494]
[1763797300080,0.4509,2761.8,2760.8,0.001]
[1763797300280,0.4529,2761.8,2760.8,0.001]
[1763797300490,0.4803,2760.9,2760.8,0.001]
[1763797301004,0.9285,2760.9,2760.8,0.001]
[1763797302211,0.4482,2761.4,2760.8,0.4807]
[1763797302512,0.56832062,2761.6,2760.8,0.4807]
[1763797302513,0.56832062,2761.6,2760.8,0.9737]
[1763797302695,0.56832062,2761.6,2760.9,0.493]
[1763797303480,0.4518,2761.7,2760.9,0.493]
[1763797305894,0.4518,2761.7,2760.8,0.001]
[1763797306076,0.33636709,2761.6,2760.8,0.001]
[1763797306465,0.4518,2761.5,2760.8,0.001]
[1763797308288,0.33685353,2761.4,2760.8,0.001]
[1763797308716,0.78865353,2761.4,2760.8,0.001]
[1763797309030,0.4518,2761.4,2760.8,0.001]
[1763797312429,0.56828948,2761.5,2760.9,0.493]
[1763797312636,0.56828948,2761.5,2761.4,0.4797]
[1763797313440,0.002,2761.8,2761.4,0.4797]
[1763797313644,0.002,2761.8,2761.4,0.9727]
[1763797314035,0.33885559,2761.8,2761.4,0.9727]
[1763797314406,0.002,2761.8,2761.4,0.9727]
[1763797315242,0.002,2761.8,2761.4,0.4797]
[1763797315712,0.4538,2761.8,2761.4,0.4797]
[1763797316155,0.002,2761.8,2761.4,0.9727]
[1763797318334,0.002,2761.8,2761.7,0.4797]
[1763797319462,0.002,2761.8,2761.7,0.9727]
[1763797320417,0.2782,2761.8,2761.3,0.493]
[1763797320624,0.002,2761.8,2761.3,0.493]
[1763797321341,0.4538,2761.8,2761.3,0.493]
[1763797321545,0.4538,2761.8,2761.2,0.59294]
[1763797322053,0.4538,2761.8,2761.3,0.19929326]
[1763797322271,0.4538,2761.8,2761.2,0.59294]
[1763797322636,0.4538,2761.8,2760.5,0.494]
[1763797322637,0.2762,2761.3,2760.5,0.494]
[1763797322837,0.0028,2761.2,2760.5,0.494]
[1763797323277,0.4546,2761.2,2760.5,0.494]
[1763797323976,0.0028,2761.2,2760.5,0.001]